[Event "EYTCC Open U18 2018"]
[Site "Bad Blankeburg"]
[Date "2018.07.18"]
[Round "7"]
[White "Turan, Asim"]
[Black "Urban, Konstantin"]
[Result "1/2-1/2"]
[ECO "A50"]
[WhiteElo "2041"]
[BlackElo "2325"]
[Annotator "ChessBase"]
[PlyCount "66"]
[EventDate "2018.07.12"]
[EventType "swiss"]
[EventCountry "GER"]
[SourceTitle "playchess.com"]
[Source "ChessBase"]
[SourceQuality "1"]
[WhiteTeam "Turkey"]
[BlackTeam "Germany"]
[WhiteTeamCountry "TUR"]
[BlackTeamCountry "GER"]
[TimeControl "40/5400+30:1800+30"]

1. d4 {[%emt 0:00:00]} Nf6 {[%emt 0:00:00]} 2. c4 {[%emt 0:00:00]} g6 {[%emt 0:00:00]} 3. f3 {[%emt 0:00:00]} Bg7 {[%emt 0:00:00]} 4. e4 {[%emt 0:00:00]} d6 {[%emt 0:00:00]} 5. Ne2 {[%emt 0:00:00]} O-O {[%emt 0:00:13]} 6. Be3 {[%emt 0:00:00]} Nbd7 {[%emt 0:00:31]} 7. Qd2 {[%emt 0:00:17]} c5 {[%emt 0:01:10]} 8. d5 {[%emt 0:00:40]} a6 {[%emt 0:05:19]} 9. a4 {[%emt 0:01:26]} Ne5 {[%emt 0:02:39]} 10. Nec3 {[%emt 0:00:37]} e6 {[%emt 0:08:21]} 11. Be2 {[%emt 0:02:25]} exd5 {[%emt 0:00:16]} 12. cxd5 {[%emt 0:00:15]} Nh5 {[%emt 0:04:38]} 13. O-O {[%emt 0:01:55]} f5 {[%emt 0:02:43]} 14. exf5 {[%emt 0:00:49]} gxf5 {[%emt 0:01:17]} 15. Bh6 {[%emt 0:00:59]} Rf7 {[%emt 0:10:28]} 16. Bxg7 {[%emt 0:03:30]} Rxg7 {[%emt 0:00:48]} 17. f4 {[%emt 0:10:58]} Ng4 {[%emt 0:00:22]} 18. Bxg4 {[%emt 0:01:28]} fxg4 {[%emt 0:03:16]} 19. g3 {[%emt 0:03:44]} Bf5 {[%emt 0:02:44]} 20. Na3 {[%emt 0:01:42]} Qd7 {[%emt 0:05:50]} 21. Rae1 {[%emt 0:02:50]} Re8 {[%emt 0:04:07]} 22. Rxe8+ {[%emt 0:01:29]} Qxe8 {[%emt 0:00:01]} 23. Nc4 {[%emt 0:02:41]} Qd7 {[%emt 0:01:06]} 24. a5 {[%emt 0:00:47]} Re7 {[%emt 0:01:19]} 25. Re1 {[%emt 0:00:42]} Nf6 {[%emt 0:00:49]} 26. Rxe7 {[%emt 0:01:23]} Qxe7 {[%emt 0:00:02]} 27. Qe3 {[%emt 0:01:29]} Kf7 {[%emt 0:01:03]} 28. Qxe7+ {[%emt 0:02:23]} Kxe7 {[%emt 0:00:02]} 29. Nb6 {[%emt 0:02:17]} Ne8 {[%emt 0:12:08]} 30. Kf2 {[%emt 0:05:59]} h5 {[%emt 0:03:50]} 31. Nc4 {[%emt 0:12:06]} Bd3 {[%emt 0:05:01]} 32. Ne3 {[%emt 0:01:07]} Ng7 {[%emt 0:03:14]} 33. Ke1 {[%emt 0:02:12]} Bh7 {[%emt 0:02:08]} 1/2-1/2